fUST/lending_fUST_20260123
["ID","MTS","AMOUNT","RATE_DAILY","PERIOD"]
[403115922,1769172632985,-500.0,0.00013273,2]
[403115923,1769172632994,-500.0,0.00013273,2]
[403115924,1769172633005,-500.0,0.00013273,2]
[403115925,1769172633014,-506.52988688,0.00013273,2]
[403115926,1769172633024,-500.0,0.00013273,2]
[403115927,1769172633033,-500.0,0.00013273,2]
[403115928,1769172633043,-502.45039947,0.00013273,2]
[403115929,1769172633053,-500.0,0.00013273,2]
[403115930,1769172633062,-501.64226361,0.00013273,2]
[403115931,1769172633071,-500.0,0.00013273,2]
[403115932,1769172633080,-500.0,0.00013273,2]
[403115933,1769172633090,-500.0,0.00013273,2]
[403115934,1769172633099,-500.60565032,0.00013273,2]
[403115935,1769172633109,-500.37529675,0.00013273,2]
[403115936,1769172633119,-501.08403371,0.00013273,2]
[403115937,1769172633129,-504.63987932,0.00013273,2]
[403115938,1769172633139,-502.01099619,0.00013273,2]
[403115939,1769172633148,-160.0,0.00013273,2]
[403115940,1769172633158,-629.0,0.00013274,2]
[403115941,1769172633167,-1368.0,0.00013274,2]
[403115942,1769172633176,-2149.0,0.00013274,2]
[403115943,1769172633185,-150.0,0.00013274,2]
[403115944,1769172633196,-834.0643291,0.00013284,2]
[403115945,1769172633205,-420.0,0.00013384,2]
[403115946,1769172633215,-357.24132234,0.00013388,2]
[403115947,1769172633224,-2579.17784983,0.00013388,2]
[403115948,1769172633234,-1645.0,0.00013413,2]
[403115949,1769172633243,-2107.05308959,0.00013449,28]
[403115950,1769172633252,-186.1049073,0.00013493,2]
[403115951,1769172633263,-611.0173487,0.00013562,2]
[403115952,1769172633272,-312.1998304,0.00013562,2]
[403115953,1769172633281,-305.4129056,0.00013562,2]
[403115954,1769172633291,-305.4129056,0.00013562,2]
[403115955,1769172633300,-158.8287366,0.00013562,2]
[403115956,1769172633310,-300.0,0.00013673,2]
[403115957,1769172633320,-500.0,0.00013698,2]
[403115958,1769172633329,-500.0,0.00013698,2]
[403115959,1769172633338,-265.06,0.00013698,2]
[403115960,1769172633348,-500.0,0.00013698,2]
[403115961,1769172633357,-500.0,0.00013698,2]
[403115962,1769172633367,-500.0,0.00013698,2]
[403115963,1769172633376,-500.0,0.00013698,2]
[403115964,1769172633385,-231.75824499,0.00013698,2]
[403115965,1769172633395,-500.0,0.00013698,2]
[403115966,1769172633404,-500.0,0.00013698,2]
[403115967,1769172633414,-500.0,0.00013698,2]
[403115968,1769172633424,-500.0,0.00013698,2]
[403115969,1769172633434,-500.0,0.00013698,2]
[403115970,1769172633443,-500.0,0.00013698,2]
[403115971,1769172633453,-527.43989334,0.00013698,2]
[403115972,1769172633462,-1432.452466,0.00013699,2]
[403115973,1769172633472,-1000.0,0.00013699,2]
[403115974,1769172633486,-500.0,0.00013699,2]
[403115975,1769172633497,-500.0,0.00013699,2]
[403115976,1769172633507,-500.0,0.00013699,2]
[403115977,1769172633516,-500.0,0.00013699,2]
[403115978,1769172633528,-158.30314465,0.00013699,2]
[403115979,1769172633537,-158.10301444,0.00013699,2]
[403115980,1769172633547,-500.0,0.00013699,2]
[403115981,1769172633556,-500.0,0.00013699,2]
[403115982,1769172633565,-500.0,0.00013699,2]
[403115983,1769172633575,-201.56889035,0.00013699,2]
[403115984,1769172633584,-348.0,0.00013762,2]
[403115985,1769172633594,-166.0,0.00013762,2]
[403115986,1769172633603,-249.91919747,0.00013762,2]
[403115987,1769172633612,-166.0,0.00013762,2]
[403115988,1769172633622,-164.0,0.00013762,2]
[403115989,1769172633631,-166.0,0.00013762,2]
[403115990,1769172633640,-164.0,0.00013762,2]
[403115991,1769172633649,-164.0,0.00013762,2]
[403115992,1769172633658,-164.0,0.00013762,2]
[403115993,1769172633667,-225.60318206,0.00013762,2]
[403115994,1769172633677,-153.0,0.00013762,2]
[403115995,1769172633686,-153.0,0.00013762,2]
[403115996,1769172633695,-153.0,0.00013762,2]
[403115997,1769172633705,-153.0,0.00013762,2]
[403115998,1769172633714,-153.0,0.00013762,2]
[403115999,1769172633723,-153.0,0.00013762,2]
[403116000,1769172633734,-153.0,0.00013762,2]
[403116001,1769172633743,-161.95462285,0.00013762,2]
[403116002,1769172633752,-296.94684558,0.00013762,2]
[403116003,1769172633762,-152.0,0.00013765,2]
[403116004,1769172633771,-151.0,0.00013765,2]
[403116005,1769172633780,-152.0,0.00013765,2]
[403116006,1769172633790,-151.0,0.00013765,2]
[403116007,1769172633799,-152.0,0.00013765,2]
[403116008,1769172633808,-151.0,0.00013765,2]
[403116009,1769172633818,-152.0,0.00013765,2]
[403116010,1769172633827,-152.0,0.00013765,2]
[403116011,1769172633837,-151.0,0.00013765,2]
[403116012,1769172633846,-240.0,0.00013765,2]
[403116013,1769172633856,-151.0,0.00013765,2]
[403116014,1769172633866,-151.0,0.00013765,2]
[403116015,1769172633875,-151.0,0.00013765,2]
[403116016,1769172633884,-151.0,0.00013765,2]
[403116017,1769172633894,-292.0,0.00013765,2]
[403116018,1769172633903,-150.0,0.00013779,2]
[403116020,1769172633914,-150.0,0.00013779,2]
[403116021,1769172633923,-151.0,0.000138,2]
[403116022,1769172633932,-151.0,0.000138,2]
[403116023,1769172633941,-500.0,0.00013821,2]
[403116024,1769172633950,-500.0,0.00013821,2]
[403116026,1769172633959,-959.81748108,0.00013821,2]
[403116027,1769172633968,-504.2764385,0.00013821,2]
[403116028,1769172633977,-1000.0,0.00013821,2]
[403116029,1769172633986,-1000.0,0.00013821,2]
[403116030,1769172633995,-1000.0,0.00013821,2]
[403116031,1769172634004,-720.0,0.00013865,2]
[403116033,1769172634014,-2674.60743027,0.00013936,2]
[403116034,1769172634023,-296.61697567,0.00014197,2]
[403116035,1769172634032,-1000.0,0.00014247,2]
[403116036,1769172634042,-159.85552454,0.00014247,2]
[403116037,1769172634051,-1000.0,0.00014247,2]
[403116038,1769172634060,-1000.0,0.00014247,2]
[403116039,1769172634070,-1500.0,0.00014368,2]
[403116040,1769172634080,-1500.0,0.00014368,2]
[403116041,1769172634090,-1500.0,0.00014368,2]
[403116042,1769172634099,-151.0,0.000145,2]
[403116043,1769172634108,-151.0,0.000145,2]
[403116044,1769172634118,-500.0,0.00014531,2]
[403116045,1769172634128,-500.0,0.00014531,2]
[403116046,1769172634138,-155.0,0.00014548,2]
[403116047,1769172634147,-4417.57455565,0.0001468,2]
[403116048,1769172634156,-587.0,0.00014689,2]
[403116049,1769172634166,-1157.58973245,0.00014795,2]
[403116050,1769172634175,-1500.0,0.00014795,2]
[403116052,1769172634185,-1500.0,0.00014795,2]
[403116053,1769172634194,-1417.0274818,0.00014897,2]
[403116054,1769172634204,-3060.047839,0.000149,2]
[403116055,1769172634213,-960.67824522,0.000149,2]
[403116056,1769172634222,-2000.0,0.00014916,2]
[403116057,1769172634231,-1919.32912703,0.00014916,2]
[403116058,1769172634241,-2000.0,0.00014916,2]
[403116059,1769172634251,-79710.76946594,0.00015,2]
[403116060,1769172637180,-67.85050776,0.00012117,2]
[403116070,1769172638323,-98.34093163,0.00012117,2]
[403116071,1769172638333,-500.0,0.00012194,2]
[403116072,1769172638342,-500.0,0.00012194,2]
[403116073,1769172638351,-417.54516062,0.00012194,2]
[403116074,1769172638362,-82.45483938,0.00012194,2]
[403116075,1769172638372,-500.0,0.00012194,2]
[403116076,1769172638381,-500.0,0.00012194,2]
[403116077,1769172638390,-500.0,0.00012194,2]
[403116078,1769172638399,-500.0,0.00012194,2]
[403116079,1769172638408,-316.04824266,0.00012194,2]
[403116080,1769172638417,-500.0,0.00012194,2]
[403116081,1769172638427,-500.0,0.00012194,2]
[403116082,1769172638437,-500.0,0.00012194,2]
[403116083,1769172638446,-500.0,0.00012194,2]
[403116084,1769172638455,-263.55998114,0.00012194,2]
[403116085,1769172638464,-178.39677922,0.00012194,2]
[403116100,1769172640556,-321.60322078,0.00012194,2]
[403116101,1769172640566,-74.11677922,0.00012194,2]
[403116109,1769172643725,-425.88322078,0.00012194,2]
[403116110,1769172643735,-402.93677922,0.00012194,2]
[403116116,1769172646796,-97.06322078,0.00012194,2]
[403116117,1769172646806,-500.0,0.00012194,2]
[403116118,1769172646815,-500.0,0.00012194,2]
[403116119,1769172646824,-500.0,0.00012194,2]
[403116120,1769172646833,-57.2304241,0.00012194,2]
[403116121,1769172650729,375.016972,0.00011995,2]
[403116136,1769172722684,300.0,0.00012094,2]
[403116137,1769172782862,300.0,0.00012094,2]
[403116139,1769172842688,300.0,0.00012094,2]
[403116145,1769172902397,300.0,0.00012094,2]
[403116146,1769172962717,300.0,0.00012094,2]
[403116149,1769173022631,300.0,0.00012094,2]
[403116150,1769173082485,300.0,0.00012094,2]
[403116152,1769173142529,300.0,0.00012094,2]
[403116157,1769173182578,-32.38287878,0.00012095,2]
[403116158,1769173189526,150.0,7.881e-05,2]
[403116159,1769173189948,150.0,8.598e-05,2]
[403116160,1769173190902,150.0,9.314e-05,2]
[403116161,1769173191411,150.0,0.00010031,2]
[403116162,1769173191731,150.0,0.00010747,2]
[403116163,1769173192138,150.0,0.00011463,2]
[403116166,1769173201784,300.0,0.00012094,2]
[403116168,1769173202223,300.0,0.00012094,2]
[403116169,1769173219320,300.0,0.00011397,2]
[403116170,1769173225076,1205.0,0.0001209,2]
[403116171,1769173237164,371.99402526,0.00012094,2]
[403116173,1769173242859,500.0,0.00012094,2]
[403116174,1769173242889,500.0,0.00012094,2]
[403116175,1769173243025,500.0,0.00012094,2]
[403116176,1769173243054,403.04507417,0.00012094,2]
[403116177,1769173243086,500.0,0.00012094,2]
[403116178,1769173243115,500.0,0.00012094,2]
[403116179,1769173243145,500.0,0.00012094,2]
[403116180,1769173243175,500.0,0.00012094,2]
[403116181,1769173243207,319.97090057,0.00012094,2]
[403116182,1769173243231,180.02909943,0.00012094,2]
[403116183,1769173243264,500.0,0.00012094,2]
[403116184,1769173243294,500.0,0.00012094,2]
[403116185,1769173243322,500.0,0.00012094,2]
[403116186,1769173243352,500.0,0.00012094,2]
[403116187,1769173243386,500.0,0.00012094,2]
[403116188,1769173243418,500.0,0.00012094,2]
[403116189,1769173243450,500.0,0.00012094,2]
[403116190,1769173243481,500.0,0.00012094,2]
[403116191,1769173243515,500.0,0.00012094,2]
[403116192,1769173243545,500.0,0.00012094,2]
[403116193,1769173243575,500.0,0.00012094,2]
[403116194,1769173243604,500.0,0.00012094,2]
[403116195,1769173243635,500.0,0.00012094,2]
[403116196,1769173243664,500.0,0.00012094,2]
[403116197,1769173243699,500.0,0.00012094,2]
[403116198,1769173243731,500.0,0.00012094,2]
[403116199,1769173243761,500.0,0.00012094,2]
[403116200,1769173243789,500.0,0.00012094,2]
[403116201,1769173243822,500.0,0.00012094,2]
[403116202,1769173243852,319.98090057,0.00012094,2]
[403116203,1769173243876,180.01909943,0.00012094,2]
[403116204,1769173243906,500.0,0.00012094,2]
[403116205,1769173243935,390.1221004,0.00012094,2]
[403116206,1769173243964,500.0,0.00012094,2]
[403116207,1769173243993,500.0,0.00012094,2]
[403116208,1769173244022,500.0,0.00012094,2]
[403116209,1769173244052,500.0,0.00012094,2]
[403116210,1769173244081,500.0,0.00012094,2]
[403116211,1769173244110,500.0,0.00012094,2]
[403116212,1769173244138,500.0,0.00012094,2]
[403116213,1769173244168,500.0,0.00012094,2]
[403116214,1769173244200,500.0,0.00012094,2]
[403116215,1769173244230,500.0,0.00012094,2]
[403116216,1769173244260,500.0,0.00012094,2]
[403116217,1769173244290,500.0,0.00012094,2]
[403116218,1769173244324,500.0,0.00012094,2]
[403116219,1769173244358,500.0,0.00012094,2]
[403116220,1769173244392,500.0,0.00012094,2]
[403116221,1769173244424,500.0,0.00012094,2]
[403116222,1769173244456,500.0,0.00012094,2]
[403116223,1769173244486,429.86880017,0.00012094,2]
[403116224,1769173244512,70.13119983,0.00012094,2]
[403116225,1769173244542,245.18809418,0.00012094,2]
[403116226,1769173244571,500.0,0.00012094,2]
[403116227,1769173244599,500.0,0.00012094,2]
[403116228,1769173244629,500.0,0.00012094,2]
[403116229,1769173244663,500.0,0.00012094,2]
[403116230,1769173244695,500.0,0.00012094,2]
[403116231,1769173244728,500.0,0.00012094,2]
[403116232,1769173262672,300.0,0.00012094,2]
[403116233,1769173270578,698.78957,0.00012094,2]
[403116235,1769173322751,300.0,0.00012094,2]
[403116263,1769173408789,-729.9429576,0.00012095,2]
[403116264,1769173411385,-300.00328744,0.00012095,2]
[403116265,1769173412865,-175.48463812,0.00012095,2]
[403116266,1769173416072,-176.89329581,0.00012095,2]
[403116267,1769173419928,-153.96684583,0.00012095,2]
[403116268,1769173421974,-184.43475781,0.00012095,2]
[403116269,1769173423433,-323.10670419,0.00012095,2]
[403116270,1769173425495,-307.2240708,0.00012095,2]
[403116271,1769173427000,-233.98461083,0.00012095,2]
[403116272,1769173427667,1512.00465031,0.00012095,2]
[403116273,1769173428768,153.96684583,0.00012094,2]
[403116274,1769173429244,-207.50424573,0.00012095,2]
[403116275,1769173450027,441.48885656,0.00012095,2]
[403116276,1769173498778,-160.93662789,0.00012095,2]
[403116282,1769173613491,160.93662789,0.00011995,2]
[403116296,1769173754165,-253.79436775,0.00012096,2]
[403116298,1769173813817,-181.08010149,0.00012099,2]
[403116299,1769173813838,-123.92989851,0.00012099,2]
[403116300,1769173818236,-177.24161765,0.00012099,2]
[403116311,1769173832451,-141.31044471,0.00012099,2]
[403116312,1769173832462,-1428.74404691,0.00012099,2]
[403116314,1769173832472,-181.08010149,0.00012099,2]
[403116315,1769173832481,-187.78006525,0.00012099,2]
[403116316,1769173832490,-194.72792766,0.00012099,2]
[403116317,1769173832499,-201.93286099,0.00012099,2]
[403116318,1769173832508,-209.40437684,0.00012099,2]
[403116319,1769173832517,-217.15233878,0.00012099,2]
[403116320,1769173832526,-225.18697532,0.00012099,2]
[403116321,1769173832536,-233.51889341,0.00012099,2]
[403116322,1769173832545,-242.15909246,0.00012099,2]
[403116323,1769173832554,-251.11897888,0.00012099,2]
[403116324,1769173832563,-260.4103811,0.00012099,2]
[403116325,1769173832572,-270.0455652,0.00012099,2]
[403116326,1769173832581,-280.03725112,0.00012099,2]
[403116327,1769173832590,-100.37372788,0.00012099,2]
[403116347,1769173840888,-3e-08,0.00012099,2]
[403116525,1769173846588,-190.0249015,0.00012099,2]
[403116526,1769173846598,-301.1433787,0.00012099,2]
[403116527,1769173846607,-300.0,0.00012336,2]
[403116528,1769173846617,-300.0,0.00012336,2]
[403116529,1769173846626,-300.0,0.00012336,2]
[403116530,1769173846635,-300.0,0.00012336,2]
[403116531,1769173846646,-145.65951877,0.00012336,2]
[403116532,1769173861171,5000.0,0.00012099,2]
[403116533,1769173884797,3910.5322506,0.00012099,2]
[403116544,1769173893088,1089.4777494,0.00011995,2]
[403116545,1769173893116,10000.01,0.00011995,2]
[403116546,1769173893143,10000.01,0.00011995,2]
[403116547,1769173893172,10000.01,0.00011995,2]
[403116548,1769173893198,10000.01,0.00011995,2]
[403116549,1769173893226,10000.01,0.00011995,2]
[403116550,1769173918726,-1625.2483367,0.00011756,2]
[403116553,1769173923653,-5000.0,0.00011638,2]
[403116554,1769173923954,-2912.242789,0.00011756,2]
[403116555,1769173924161,-5000.0,0.00011875,2]
[403116556,1769173930713,0.01,0.00011995,2]
[403116557,1769173930738,4999.99,0.00011995,2]
[403116558,1769173939180,1589.18625287,0.00011995,2]
[403116559,1769173947497,4237.84118222,0.00011995,2]
[403116560,1769173952993,260.39581768,0.00011994,2]
[403116561,1769173956028,5000.0,0.00011995,2]
[403116562,1769173960596,500.0,0.00011994,2]
[403116563,1769173960630,1.7730001,0.00011994,2]
[403116564,1769173960654,498.2269999,0.00011994,2]
[403116565,1769173960684,500.0,0.00011994,2]
[403116566,1769173960714,500.0,0.00011994,2]
[403116567,1769173960747,500.0,0.00011994,2]
[403116568,1769173960776,500.0,0.00011994,2]
[403116569,1769173960805,500.0,0.00011994,2]
[403116570,1769173960834,500.0,0.00011994,2]
[403116571,1769173960862,500.0,0.00011994,2]
[403116572,1769173960893,500.0,0.00011994,2]
[403116573,1769173960953,500.0,0.00011994,2]
[403116574,1769173961027,466.8847606,0.00011994,2]
[403116575,1769173961166,500.0,0.00011994,2]
[403116576,1769173979386,914.77703078,0.00011995,2]
[403116581,1769174101261,300.0,0.00011994,2]
[403116584,1769174102170,300.0,0.00011994,2]
[403116585,1769174103194,300.0,0.00011994,2]
[403116586,1769174103226,1200.0,0.00011994,2]
[403116589,1769174126323,500.0,0.00011994,2]
[403116590,1769174126376,500.0,0.00011994,2]
[403116591,1769174126427,20.12120872,0.00011994,2]
[403116592,1769174126454,504.3976007,0.00011994,2]
[403116593,1769174135659,500.0,0.00011994,2]
[403116594,1769174135712,218.54275118,0.00011994,2]
[403116596,1769174139826,182.27707238,0.00011994,2]
[403116597,1769174148659,500.0,0.00011994,2]
[403116598,1769174148693,500.0,0.00011994,2]
[403116599,1769174148724,439.01221007,0.00011994,2]
[403116600,1769174155301,500.0,0.00011994,2]
[403116601,1769174155328,500.0,0.00011994,2]
[403116602,1769174155363,500.0,0.00011994,2]
[403116603,1769174155491,500.0,0.00011994,2]
[403116604,1769174155525,500.0,0.00011994,2]
[403116605,1769174155553,500.0,0.00011994,2]
[403116606,1769174155587,508.6462335,0.00011994,2]
[403116607,1769174155615,500.0,0.00011994,2]
[403116609,1769174162242,399.18099019,0.00011969,2]
[403116611,1769174175140,500.0,0.00011994,2]
[403116612,1769174175171,500.0,0.00011994,2]
[403116613,1769174175240,500.0,0.00011994,2]
[403116614,1769174175275,500.0,0.00011994,2]
[403116615,1769174175307,500.0,0.00011994,2]
[403116616,1769174175336,247.95314198,0.00011994,2]
[403116617,1769174175359,252.04685802,0.00011994,2]
[403116618,1769174175388,500.0,0.00011994,2]
[403116619,1769174175448,345.79642479,0.00011994,2]
[403116620,1769174175477,500.0,0.00011994,2]
[403116621,1769174175506,500.0,0.00011994,2]
[403116622,1769174175591,500.0,0.00011994,2]
[403116623,1769174175620,500.0,0.00011994,2]
[403116624,1769174175647,500.0,0.00011994,2]
[403116625,1769174175674,500.0,0.00011994,2]
[403116626,1769174175702,500.0,0.00011994,2]
[403116627,1769174175747,500.0,0.00011994,2]
[403116680,1769174298226,-500.0,0.00015749,30]
[403116681,1769174298270,-500.0,0.00015749,30]
[403116682,1769174298313,-500.0,0.00015749,30]
[403116683,1769174298354,-500.72855744,0.00015749,30]
[403116684,1769174298396,-500.0,0.00015749,30]
[403116685,1769174298437,-500.0,0.00015749,30]
[403116686,1769174298477,-449.48588857,0.00015749,30]
[403116687,1769174298522,-179.48044253,0.00015749,30]
[403116688,1769174298609,-206.03871447,0.00027397,120]
[403116689,1769174298650,-500.0,0.00027397,120]
[403116690,1769174298689,-500.0,0.00027397,120]
[403116691,1769174298728,-500.0,0.00027397,120]
[403116692,1769174298765,-500.0,0.00027397,120]
[403116693,1769174298804,-500.0,0.00027397,120]
[403116694,1769174298842,-500.0,0.00027397,120]
[403116695,1769174298881,-500.0,0.00027397,120]
[403116696,1769174298921,-500.0,0.00027397,120]
[403116697,1769174298962,-500.0,0.00027397,120]
[403116698,1769174299006,-500.0,0.00027397,120]
[403116699,1769174299051,-500.0,0.00027397,120]
[403116700,1769174299096,-330.895757,0.00028767,60]
[403116701,1769174299143,-2000.01,0.0003,30]
[403116702,1769174299185,-500.0,0.00030137,120]
[403116703,1769174299228,-7987833.36063999,0.00030272,30]
[403116704,1769174311037,-1000.0,0.00026224,30]
[403116705,1769174311078,-1000.0,0.00026224,30]
[403116706,1769174311122,-579.0,0.00026224,30]
[403116707,1769174311185,-1000.0,0.00028846,30]
[403116708,1769174311227,-1000.0,0.00028846,30]
[403116709,1769174311268,-1000.0,0.00028846,30]
[403116710,1769174311315,-7886929.67286001,0.00030272,30]
[403116711,1769174311353,-301.0,0.000304,33]
[403116712,1769174311391,-200.0,0.00030493,120]
[403116713,1769174311430,-481.67561,0.000305,120]
[403116714,1769174311467,-2000.0,0.000305,120]
[403116715,1769174311503,-711.43632,0.000306,120]
[403116716,1769174311540,-5000.0,0.00030685,120]
[403116717,1769174311577,-5000.0,0.00030685,120]
[403116718,1769174311611,-159.77,0.000308,30]
[403116719,1769174311647,-186.8,0.000308,60]
[403116720,1769174311683,-1041.66666667,0.000309,30]
[403116721,1769174311718,-215.922,0.00030951,120]
[403116722,1769174311923,-1113.21,0.00030958,30]
[403116723,1769174311967,-3000.0,0.00031,120]
[403116724,1769174312010,-633.6868224,0.00031,30]
[403116725,1769174312051,-249.47305,0.00031,120]
[403116726,1769174312089,-350.0,0.00031,60]
[403116727,1769174312127,-481.67563,0.00031,120]
[403116728,1769174312165,-570.20884204,0.00031,30]
[403116729,1769174312201,-5000.0,0.00031,120]
[403116730,1769174312240,-280.62,0.00031,30]
[403116731,1769174312278,-1041.66666667,0.00031,120]
[403116732,1769174312316,-200.0,0.0003116,120]
[403116733,1769174312352,-150.9849015,0.00031165,120]
[403116734,1769174312388,-5000.0,0.00031233,120]
[403116735,1769174312424,-5000.0,0.00031233,120]
[403116736,1769174312461,-238.35239,0.000313,120]
[403116737,1769174312496,-200.0,0.000313,120]
[403116738,1769174312532,-1333.82115,0.000313,120]
[403116739,1769174312568,-200.0,0.000313,120]
[403116740,1769174312606,-201.92,0.000313,120]
[403116741,1769174312642,-3000.0,0.000314,120]
[403116742,1769174312677,-711.43632,0.000315,120]
[403116743,1769174312713,-2000.0,0.000315,120]
[403116744,1769174312749,-710.96899555,0.00031506,120]
[403116745,1769174312783,-1113.21,0.00031506,31]
[403116746,1769174312820,-200.0,0.00031715,120]
[403116747,1769174312858,-1000.0,0.00031731,30]
[403116748,1769174312894,-1000.0,0.00031731,30]
[403116749,1769174312934,-1000.0,0.00031731,30]
[403116750,1769174312972,-715.0,0.00031731,30]
[403116751,1769174313013,-5000.0,0.00031781,120]
[403116752,1769174313052,-5000.0,0.00031781,120]
[403116753,1769174313092,-1041.66666667,0.000318,30]
[403116754,1769174313135,-200.0,0.00031859,120]
[403116755,1769174313176,-616.71086056,0.00031945,120]
[403116756,1769174313218,-3000.0,0.00032,120]
[403116757,1769174313257,-2067.2815882,0.00032,120]
[403116758,1769174313298,-1000.0,0.00032,120]
[403116759,1769174313340,-211.4913448,0.00032,120]
[403116760,1769174313378,-2122.0,0.00032,120]
[403116761,1769174313415,-241.7016424,0.00032,120]
[403116762,1769174313452,-227.1309629,0.00032,120]
[403116763,1769174313489,-19713.384908,0.00032,120]
[403116764,1769174313525,-296.8577598,0.00032,120]
[403116765,1769174313560,-189.59401319,0.00032,30]
[403116766,1769174313593,-14569.00202864,0.00032,120]
[403116767,1769174339051,-1174827.27546116,0.00032,120]
[403116768,1769174339096,-200.208,0.00032,120]
[403116769,1769174339142,-153.01435735,0.00032,120]
[403116770,1769174339186,-916.53502012,0.00032,120]
[403116771,1769174339231,-1113.21,0.00032054,32]
[403116772,1769174339275,-200.0,0.00032143,120]
[403116773,1769174339316,-150.9849015,0.00032165,120]
[403116774,1769174339355,-200.0,0.00032222,120]
[403116775,1769174339393,-475.0,0.00032267,120]
[403116776,1769174339434,-200.0,0.00032277,120]
[403116777,1769174339472,-475.0,0.0003228,120]
[403116778,1769174339509,-258.058,0.0003228,120]
[403116779,1769174339545,-5000.0,0.00032329,120]
[403116780,1769174339580,-5000.0,0.00032329,120]
[403116781,1769174339617,-475.0,0.00032379,120]
[403116782,1769174339816,-200.0,0.00032568,120]
[403116783,1769174339856,-1113.21,0.00032602,33]
[403116784,1769174339896,-200.0,0.00032627,120]
[403116785,1769174339937,-200.0,0.00032653,120]
[403116786,1769174339978,-1292.09,0.00032876,120]
[403116787,1769174340022,-1999.0,0.00032876,120]
[403116788,1769174340065,-500.0,0.00032877,120]
[403116789,1769174340109,-155.226,0.00032877,120]
[403116790,1769174340154,-800.0,0.00032877,120]
[403116791,1769174340200,-5000.0,0.00032877,120]
[403116792,1769174340246,-5000.0,0.00032877,120]
[403116793,1769174340295,-1292.09,0.00032904,120]
[403116794,1769174340341,-1292.09,0.00032931,120]
[403116795,1769174340386,-1132.36,0.00032937,60]
[403116796,1769174340428,-1292.09,0.00032958,120]
[403116797,1769174340471,-1292.09,0.00032986,120]
[403116798,1769174340514,-700.0,0.00033,120]
[403116799,1769174340556,-1000.0,0.00033,120]
[403116800,1769174340596,-250.0,0.00033,120]
[403116801,1769174340635,-1323.331323,0.00033,120]
[403116802,1769174340674,-1145.86694219,0.00033,120]
[403116803,1769174340713,-160.0,0.00033,120]
[403116804,1769174340750,-24772.39761019,0.00033,120]
[403116805,1769174340789,-4754.0,0.00033,120]
[403116806,1769174340826,-10000.0,0.00033,120]
[403116807,1769174340862,-5000.0,0.00033,120]
[403116808,1769174340898,-500.0,0.00033,30]
[403116809,1769174340938,-4989.6177903,0.00033,30]
[403116810,1769174340983,-293.72566545,0.00033,60]
[403116811,1769174341021,-55391.73054427,0.00033,120]
[403116812,1769174341060,-30074.37417204,0.00033,30]
[403116813,1769174341098,-63104.99364148,0.00033,30]
[403116814,1769174341137,-1292.09,0.00033013,120]
[403116815,1769174341177,-1132.36,0.00033037,60]
[403116816,1769174341215,-1292.09,0.00033041,120]
[403116817,1769174341253,-200.0,0.00033055,120]
[403116818,1769174341292,-1292.09,0.00033068,120]
[403116820,1769174341330,-200.0,0.00033069,120]
[403116821,1769174341367,-1292.09,0.00033095,120]